{"text_format":"1","workbook":"xlsx","n_sheets":3,"sheets":["RICHIESTA CODICI IMPIANTI","Foglio1","formule condizionali"],"not_rendered":{"charts":0,"images":0,"macros":1,"external_links":0,"defined_names":1,"comments":1,"pivot_tables":0},"unopened":[],"bounds":{"document_bytes":16777216,"sheet_cells":100000,"rows_first":2000,"rows_last":500,"rows_between":2000,"halvings":0,"cell_chars":16384,"cell_head_chars":4096},"cells_cut":0,"cells_raw":0,"read":"whole","date_system":"1900"}

{"sheet":"RICHIESTA CODICI IMPIANTI","index":0,"n_rows":50,"n_cols":26,"rows_kept":50,"cut":false,"hidden":false,"merged":[]}
["Cognome","Nome","Rag_Sociale","PDR (caldaie) o POD (g.ppi frigo)","C_Fisc_P_Iva","Proprietario Attuale","Comune","Frazione","Tipo_indirizzo","Indirizzo","Civico","Sub","Piano","Telefono","Cellulare","imp_costruttore","imp_modello","imp_matricola","imp_pot_foc","stato impianto","anno installazione","Nominativo ex proprietario","Nominativo ex responsabile","Tipo_combustibile","CheckField","I CAMPI SONO TUTTI COMPILATI?"]
[null,null,null,null,null,"NO",null,null,null,null,null,null,null,null,null,null,null,null,null,null,null,{"$f":"IF(F3=\"no\",'formule condizionali'!$B$7,'formule condizionali'!$B$8)","v":"inserire nominativo"},null,"GAS NATURALE"]
[null,null,null,null,null,"NO",null,null,null,null,null,null,null,null,null,null,null,null,null,null,null,{"$f":"IF(F3=\"no\",'formule condizionali'!$B$7,'formule condizionali'!$B$8)","v":"inserire nominativo"},null,"GAS NATURALE",{"$f":"COUNTBLANK(A3:X3)","v":21},{"$f":"IF(Y3<=5,Foglio1!$Q$4,Foglio1!$Q$5)","v":"OK: TUTTI I CAMPI SONO STATI COMPILATI"}]
[null,null,null,null,null,"NO",null,null,null,null,null,null,null,null,null,null,null,null,null,null,null,{"$f":"IF(F4=\"no\",'formule condizionali'!$B$7,'formule condizionali'!$B$8)","v":"inserire nominativo"},null,"GAS NATURALE",21,{"$f":"IF(Y4<=5,Foglio1!$Q$4,Foglio1!$Q$5)","v":"OK: TUTTI I CAMPI SONO STATI COMPILATI"}]
[null,null,null,null,null,"NO",null,null,null,null,null,null,null,null,null,null,null,null,null,null,null,{"$f":"IF(F5=\"no\",'formule condizionali'!$B$7,'formule condizionali'!$B$8)","v":"inserire nominativo"},null,"GAS NATURALE",21,{"$f":"IF(Y5<=5,Foglio1!$Q$4,Foglio1!$Q$5)","v":"OK: TUTTI I CAMPI SONO STATI COMPILATI"}]
[null,null,null,null,null,"NO",null,null,null,null,null,null,null,null,null,null,null,null,null,null,null,{"$f":"IF(F6=\"no\",'formule condizionali'!$B$7,'formule condizionali'!$B$8)","v":"inserire nominativo"},null,"GAS NATURALE",21,{"$f":"IF(Y6<=5,Foglio1!$Q$4,Foglio1!$Q$5)","v":"OK: TUTTI I CAMPI SONO STATI COMPILATI"}]
[null,null,null,null,null,"NO",null,null,null,null,null,null,null,null,null,null,null,null,null,null,null,{"$f":"IF(F7=\"no\",'formule condizionali'!$B$7,'formule condizionali'!$B$8)","v":"inserire nominativo"},null,"GAS NATURALE",21,{"$f":"IF(Y7<=5,Foglio1!$Q$4,Foglio1!$Q$5)","v":"OK: TUTTI I CAMPI SONO STATI COMPILATI"}]
[null,null,null,null,null,"NO",null,"-",null,null,null,null,null,null,null,null,null,null,null,null,null,{"$f":"IF(F8=\"no\",'formule condizionali'!$B$7,'formule condizionali'!$B$8)","v":"inserire nominativo"},null,"GAS NATURALE",20,{"$f":"IF(Y8<=5,Foglio1!$Q$4,Foglio1!$Q$5)","v":"OK: TUTTI I CAMPI SONO STATI COMPILATI"}]
[null,null,null,null,null,"NO",null,null,null,null,null,null,null,null,null,null,null,null,null,null,null,{"$f":"IF(F9=\"no\",'formule condizionali'!$B$7,'formule condizionali'!$B$8)","v":"inserire nominativo"},null,"GAS NATURALE",21,{"$f":"IF(Y9<=5,Foglio1!$Q$4,Foglio1!$Q$5)","v":"OK: TUTTI I CAMPI SONO STATI COMPILATI"}]
[null,null,null,null,null,"NO",null,null,null,null,null,null,null,null,null,null,null,null,null,null,null,{"$f":"IF(F10=\"no\",'formule condizionali'!$B$7,'formule condizionali'!$B$8)","v":"inserire nominativo"},null,"GAS NATURALE",21,{"$f":"IF(Y10<=5,Foglio1!$Q$4,Foglio1!$Q$5)","v":"OK: TUTTI I CAMPI SONO STATI COMPILATI"}]
[null,null,null,null,null,"NO",null,null,null,null,null,null,null,null,null,null,null,null,null,null,null,{"$f":"IF(F11=\"no\",'formule condizionali'!$B$7,'formule condizionali'!$B$8)","v":"inserire nominativo"},null,"GAS NATURALE",21,{"$f":"IF(Y11<=5,Foglio1!$Q$4,Foglio1!$Q$5)","v":"OK: TUTTI I CAMPI SONO STATI COMPILATI"}]
[null,null,null,null,null,"NO",null,null,null,null,null,null,null,null,null,null,null,null,null,null,null,{"$f":"IF(F12=\"no\",'formule condizionali'!$B$7,'formule condizionali'!$B$8)","v":"inserire nominativo"},null,"GAS NATURALE",21,{"$f":"IF(Y12<=5,Foglio1!$Q$4,Foglio1!$Q$5)","v":"OK: TUTTI I CAMPI SONO STATI COMPILATI"}]
[null,null,null,null,null,"NO",null,null,null,null,null,null,null,null,null,null,null,null,null,null,null,{"$f":"IF(F13=\"no\",'formule condizionali'!$B$7,'formule condizionali'!$B$8)","v":"inserire nominativo"},null,"GAS NATURALE",21,{"$f":"IF(Y13<=5,Foglio1!$Q$4,Foglio1!$Q$5)","v":"OK: TUTTI I CAMPI SONO STATI COMPILATI"}]
[null,null,null,null,null,"NO",null,null,null,null,null,null,null,null,null,null,null,null,null,null,null,{"$f":"IF(F14=\"no\",'formule condizionali'!$B$7,'formule condizionali'!$B$8)","v":"inserire nominativo"},null,"GAS NATURALE",21,{"$f":"IF(Y14<=5,Foglio1!$Q$4,Foglio1!$Q$5)","v":"OK: TUTTI I CAMPI SONO STATI COMPILATI"}]
[null,null,null,null,null,"NO",null,null,null,null,null,null,null,null,null,null,null,null,null,null,null,{"$f":"IF(F15=\"no\",'formule condizionali'!$B$7,'formule condizionali'!$B$8)","v":"inserire nominativo"},null,"GAS NATURALE",21,{"$f":"IF(Y15<=5,Foglio1!$Q$4,Foglio1!$Q$5)","v":"OK: TUTTI I CAMPI SONO STATI COMPILATI"}]
[null,null,null,null,null,null,null,null,null,null,null,null,null,null,null,null,null,null,null,null,null,{"$f":"IF(F16=\"no\",'formule condizionali'!$B$7,'formule condizionali'!$B$8)","v":"è già proprietario"},null,"GASSOSO",22,{"$f":"IF(Y16<=5,Foglio1!$Q$4,Foglio1!$Q$5)","v":"OK: TUTTI I CAMPI SONO STATI COMPILATI"}]
[null,null,null,null,null,null,null,null,null,null,null,null,null,null,null,null,null,null,null,null,null,{"$f":"IF(F17=\"no\",'formule condizionali'!$B$7,'formule condizionali'!$B$8)","v":"è già proprietario"},null,"GASSOSO",22,{"$f":"IF(Y17<=5,Foglio1!$Q$4,Foglio1!$Q$5)","v":"OK: TUTTI I CAMPI SONO STATI COMPILATI"}]
[null,null,null,null,null,null,null,null,null,null,null,null,null,null,null,null,null,null,null,null,null,{"$f":"IF(F18=\"no\",'formule condizionali'!$B$7,'formule condizionali'!$B$8)","v":"è già proprietario"},null,"GASSOSO",22,{"$f":"IF(Y18<=5,Foglio1!$Q$4,Foglio1!$Q$5)","v":"OK: TUTTI I CAMPI SONO STATI COMPILATI"}]
[null,null,null,null,null,null,null,null,null,null,null,null,null,null,null,null,null,null,null,null,null,{"$f":"IF(F19=\"no\",'formule condizionali'!$B$7,'formule condizionali'!$B$8)","v":"è già proprietario"},null,"GASSOSO",22,{"$f":"IF(Y19<=5,Foglio1!$Q$4,Foglio1!$Q$5)","v":"OK: TUTTI I CAMPI SONO STATI COMPILATI"}]
[null,null,null,null,null,null,null,null,null,null,null,null,null,null,null,null,null,null,null,null,null,{"$f":"IF(F20=\"no\",'formule condizionali'!$B$7,'formule condizionali'!$B$8)","v":"è già proprietario"},null,"GASSOSO",22,{"$f":"IF(Y20<=5,Foglio1!$Q$4,Foglio1!$Q$5)","v":"OK: TUTTI I CAMPI SONO STATI COMPILATI"}]
[null,null,null,null,null,null,null,null,null,null,null,null,null,null,null,null,null,null,null,null,null,{"$f":"IF(F21=\"no\",'formule condizionali'!$B$7,'formule condizionali'!$B$8)","v":"è già proprietario"},null,"GASSOSO",22,{"$f":"IF(Y21<=5,Foglio1!$Q$4,Foglio1!$Q$5)","v":"OK: TUTTI I CAMPI SONO STATI COMPILATI"}]
[null,null,null,null,null,null,null,null,null,null,null,null,null,null,null,null,null,null,null,null,null,{"$f":"IF(F22=\"no\",'formule condizionali'!$B$7,'formule condizionali'!$B$8)","v":"è già proprietario"},null,"GASSOSO",22,{"$f":"IF(Y22<=5,Foglio1!$Q$4,Foglio1!$Q$5)","v":"OK: TUTTI I CAMPI SONO STATI COMPILATI"}]
[null,null,null,null,null,null,null,null,null,null,null,null,null,null,null,null,null,null,null,null,null,{"$f":"IF(F23=\"no\",'formule condizionali'!$B$7,'formule condizionali'!$B$8)","v":"è già proprietario"},null,"GASSOSO",22,{"$f":"IF(Y23<=5,Foglio1!$Q$4,Foglio1!$Q$5)","v":"OK: TUTTI I CAMPI SONO STATI COMPILATI"}]
[null,null,null,null,null,null,null,null,null,null,null,null,null,null,null,null,null,null,null,null,null,{"$f":"IF(F24=\"no\",'formule condizionali'!$B$7,'formule condizionali'!$B$8)","v":"è già proprietario"},null,"GASSOSO",22,{"$f":"IF(Y24<=5,Foglio1!$Q$4,Foglio1!$Q$5)","v":"OK: TUTTI I CAMPI SONO STATI COMPILATI"}]
[null,null,null,null,null,null,null,null,null,null,null,null,null,null,null,null,null,null,null,null,null,{"$f":"IF(F25=\"no\",'formule condizionali'!$B$7,'formule condizionali'!$B$8)","v":"è già proprietario"},null,"GASSOSO",22,{"$f":"IF(Y25<=5,Foglio1!$Q$4,Foglio1!$Q$5)","v":"OK: TUTTI I CAMPI SONO STATI COMPILATI"}]
[null,null,null,null,null,null,null,null,null,null,null,null,null,null,null,null,null,null,null,null,null,{"$f":"IF(F26=\"no\",'formule condizionali'!$B$7,'formule condizionali'!$B$8)","v":"è già proprietario"},null,"GASSOSO",22,{"$f":"IF(Y26<=5,Foglio1!$Q$4,Foglio1!$Q$5)","v":"OK: TUTTI I CAMPI SONO STATI COMPILATI"}]
[null,null,null,null,null,null,null,null,null,null,null,null,null,null,null,null,null,null,null,null,null,{"$f":"IF(F27=\"no\",'formule condizionali'!$B$7,'formule condizionali'!$B$8)","v":"è già proprietario"},null,"GASSOSO",22,{"$f":"IF(Y27<=5,Foglio1!$Q$4,Foglio1!$Q$5)","v":"OK: TUTTI I CAMPI SONO STATI COMPILATI"}]
[null,null,null,null,null,null,null,null,null,null,null,null,null,null,null,null,null,null,null,null,null,{"$f":"IF(F28=\"no\",'formule condizionali'!$B$7,'formule condizionali'!$B$8)","v":"è già proprietario"},null,"GASSOSO",22,{"$f":"IF(Y28<=5,Foglio1!$Q$4,Foglio1!$Q$5)","v":"OK: TUTTI I CAMPI SONO STATI COMPILATI"}]
[null,null,null,null,null,null,null,null,null,null,null,null,null,null,null,null,null,null,null,null,null,{"$f":"IF(F29=\"no\",'formule condizionali'!$B$7,'formule condizionali'!$B$8)","v":"è già proprietario"},null,"GASSOSO",22,{"$f":"IF(Y29<=5,Foglio1!$Q$4,Foglio1!$Q$5)","v":"OK: TUTTI I CAMPI SONO STATI COMPILATI"}]
[null,null,null,null,null,null,null,null,null,null,null,null,null,null,null,null,null,null,null,null,null,{"$f":"IF(F30=\"no\",'formule condizionali'!$B$7,'formule condizionali'!$B$8)","v":"è già proprietario"},null,"GASSOSO",22,{"$f":"IF(Y30<=5,Foglio1!$Q$4,Foglio1!$Q$5)","v":"OK: TUTTI I CAMPI SONO STATI COMPILATI"}]
[null,null,null,null,null,null,null,null,null,null,null,null,null,null,null,null,null,null,null,null,null,{"$f":"IF(F31=\"no\",'formule condizionali'!$B$7,'formule condizionali'!$B$8)","v":"è già proprietario"},null,"GASSOSO",22,{"$f":"IF(Y31<=5,Foglio1!$Q$4,Foglio1!$Q$5)","v":"OK: TUTTI I CAMPI SONO STATI COMPILATI"}]
[null,null,null,null,null,null,null,null,null,null,null,null,null,null,null,null,null,null,null,null,null,{"$f":"IF(F32=\"no\",'formule condizionali'!$B$7,'formule condizionali'!$B$8)","v":"è già proprietario"},null,"GASSOSO",22,{"$f":"IF(Y32<=5,Foglio1!$Q$4,Foglio1!$Q$5)","v":"OK: TUTTI I CAMPI SONO STATI COMPILATI"}]
[null,null,null,null,null,null,null,null,null,null,null,null,null,null,null,null,null,null,null,null,null,{"$f":"IF(F33=\"no\",'formule condizionali'!$B$7,'formule condizionali'!$B$8)","v":"è già proprietario"},null,"GASSOSO",22,{"$f":"IF(Y33<=5,Foglio1!$Q$4,Foglio1!$Q$5)","v":"OK: TUTTI I CAMPI SONO STATI COMPILATI"}]
[null,null,null,null,null,null,null,null,null,null,null,null,null,null,null,null,null,null,null,null,null,{"$f":"IF(F34=\"no\",'formule condizionali'!$B$7,'formule condizionali'!$B$8)","v":"è già proprietario"},null,"GASSOSO",22,{"$f":"IF(Y34<=5,Foglio1!$Q$4,Foglio1!$Q$5)","v":"OK: TUTTI I CAMPI SONO STATI COMPILATI"}]
[null,null,null,null,null,null,null,null,null,null,null,null,null,null,null,null,null,null,null,null,null,{"$f":"IF(F35=\"no\",'formule condizionali'!$B$7,'formule condizionali'!$B$8)","v":"è già proprietario"},null,"GASSOSO",22,{"$f":"IF(Y35<=5,Foglio1!$Q$4,Foglio1!$Q$5)","v":"OK: TUTTI I CAMPI SONO STATI COMPILATI"}]
[null,null,null,null,null,null,null,null,null,null,null,null,null,null,null,null,null,null,null,null,null,{"$f":"IF(F36=\"no\",'formule condizionali'!$B$7,'formule condizionali'!$B$8)","v":"è già proprietario"},null,"GASSOSO",22,{"$f":"IF(Y36<=5,Foglio1!$Q$4,Foglio1!$Q$5)","v":"OK: TUTTI I CAMPI SONO STATI COMPILATI"}]
[null,null,null,null,null,null,null,null,null,null,null,null,null,null,null,null,null,null,null,null,null,{"$f":"IF(F37=\"no\",'formule condizionali'!$B$7,'formule condizionali'!$B$8)","v":"è già proprietario"},null,"GASSOSO",22,{"$f":"IF(Y37<=5,Foglio1!$Q$4,Foglio1!$Q$5)","v":"OK: TUTTI I CAMPI SONO STATI COMPILATI"}]
[null,null,null,null,null,"no",null,null,null,null,null,null,null,null,null,null,null,null,null,null,null,{"$f":"IF(F38=\"no\",'formule condizionali'!$B$7,'formule condizionali'!$B$8)","v":"inserire nominativo"},null,"GASSOSO",21,{"$f":"IF(Y38<=5,Foglio1!$Q$4,Foglio1!$Q$5)","v":"OK: TUTTI I CAMPI SONO STATI COMPILATI"}]
[null,null,null,null,null,null,null,null,null,null,null,null,null,null,null,null,null,null,null,null,null,{"$f":"IF(F39=\"no\",'formule condizionali'!$B$7,'formule condizionali'!$B$8)","v":"è già proprietario"},null,"GASSOSO",22,{"$f":"IF(Y39<=5,Foglio1!$Q$4,Foglio1!$Q$5)","v":"OK: TUTTI I CAMPI SONO STATI COMPILATI"}]
[null,null,null,null,null,null,null,null,null,null,null,null,null,null,null,null,null,null,null,null,null,{"$f":"IF(F40=\"no\",'formule condizionali'!$B$7,'formule condizionali'!$B$8)","v":"è già proprietario"},null,"GASSOSO",22,{"$f":"IF(Y40<=5,Foglio1!$Q$4,Foglio1!$Q$5)","v":"OK: TUTTI I CAMPI SONO STATI COMPILATI"}]
[null,null,null,null,null,null,null,null,null,null,null,null,null,null,null,null,null,null,null,null,null,{"$f":"IF(F41=\"no\",'formule condizionali'!$B$7,'formule condizionali'!$B$8)","v":"è già proprietario"},null,"GASSOSO",22,{"$f":"IF(Y41<=5,Foglio1!$Q$4,Foglio1!$Q$5)","v":"OK: TUTTI I CAMPI SONO STATI COMPILATI"}]
[null,null,null,null,null,null,null,null,null,null,null,null,null,null,null,null,null,null,null,null,null,{"$f":"IF(F42=\"no\",'formule condizionali'!$B$7,'formule condizionali'!$B$8)","v":"è già proprietario"},null,"GASSOSO",22,{"$f":"IF(Y42<=5,Foglio1!$Q$4,Foglio1!$Q$5)","v":"OK: TUTTI I CAMPI SONO STATI COMPILATI"}]
[null,null,null,null,null,null,null,null,null,null,null,null,null,null,null,null,null,null,null,null,null,{"$f":"IF(F43=\"no\",'formule condizionali'!$B$7,'formule condizionali'!$B$8)","v":"è già proprietario"},null,"GASSOSO",22,{"$f":"IF(Y43<=5,Foglio1!$Q$4,Foglio1!$Q$5)","v":"OK: TUTTI I CAMPI SONO STATI COMPILATI"}]
[null,null,null,null,null,null,null,null,null,null,null,null,null,null,null,null,null,null,null,null,null,{"$f":"IF(F44=\"no\",'formule condizionali'!$B$7,'formule condizionali'!$B$8)","v":"è già proprietario"},null,"GASSOSO",22,{"$f":"IF(Y44<=5,Foglio1!$Q$4,Foglio1!$Q$5)","v":"OK: TUTTI I CAMPI SONO STATI COMPILATI"}]
[null,null,null,null,null,null,null,null,null,null,null,null,null,null,null,null,null,null,null,null,null,{"$f":"IF(F45=\"no\",'formule condizionali'!$B$7,'formule condizionali'!$B$8)","v":"è già proprietario"},null,"GASSOSO",22,{"$f":"IF(Y45<=5,Foglio1!$Q$4,Foglio1!$Q$5)","v":"OK: TUTTI I CAMPI SONO STATI COMPILATI"}]
[null,null,null,null,null,null,null,null,null,null,null,null,null,null,null,null,null,null,null,null,null,{"$f":"IF(F46=\"no\",'formule condizionali'!$B$7,'formule condizionali'!$B$8)","v":"è già proprietario"},null,"GASSOSO",22,{"$f":"IF(Y46<=5,Foglio1!$Q$4,Foglio1!$Q$5)","v":"OK: TUTTI I CAMPI SONO STATI COMPILATI"}]
[null,null,null,null,null,null,null,null,null,null,null,null,null,null,null,null,null,null,null,null,null,{"$f":"IF(F47=\"no\",'formule condizionali'!$B$7,'formule condizionali'!$B$8)","v":"è già proprietario"},null,"GASSOSO",22,{"$f":"IF(Y47<=5,Foglio1!$Q$4,Foglio1!$Q$5)","v":"OK: TUTTI I CAMPI SONO STATI COMPILATI"}]
[null,null,null,null,null,null,null,null,null,null,null,null,null,null,null,null,null,null,null,null,null,{"$f":"IF(F48=\"no\",'formule condizionali'!$B$7,'formule condizionali'!$B$8)","v":"è già proprietario"},null,"GASSOSO",22,{"$f":"IF(Y48<=5,Foglio1!$Q$4,Foglio1!$Q$5)","v":"OK: TUTTI I CAMPI SONO STATI COMPILATI"}]
[null,null,null,null,null,"no",null,null,null,null,null,null,null,null,null,null,null,null,null,null,null,{"$f":"IF(F49=\"no\",'formule condizionali'!$B$7,'formule condizionali'!$B$8)","v":"inserire nominativo"},null,"GASSOSO",21,{"$f":"IF(Y49<=5,Foglio1!$Q$4,Foglio1!$Q$5)","v":"OK: TUTTI I CAMPI SONO STATI COMPILATI"}]
[null,null,null,null,null,null,null,null,null,null,null,null,null,null,null,null,null,null,null,null,null,{"$f":"IF(F50=\"no\",'formule condizionali'!$B$7,'formule condizionali'!$B$8)","v":"è già proprietario"},null,"GASSOSO",22,{"$f":"IF(Y50<=5,Foglio1!$Q$4,Foglio1!$Q$5)","v":"OK: TUTTI I CAMPI SONO STATI COMPILATI"}]

{"sheet":"Foglio1","index":1,"n_rows":137,"n_cols":17,"rows_kept":137,"cut":false,"hidden":true,"merged":[[2,11,2,13],[4,11,4,14],[0,0,0,1],[1,3,1,4],[0,6,0,8],[0,11,0,13],[1,11,1,13]]}
["TIPI COMBUSTIBILE",null,null,null,null,null,null,null,null,"Comune",null,"CHECK PROPRIETARIO"]
["GAS NATURALE",null,null,"CHECK ANNO",null,null,0,null,null,"Acquaviva Collecroce",null,"E' GIA' PROPRIETARIO",null,null,null,null,"INSERIRE I DATI MANCANTI"]
["GPL",null,null,{"$f":"TODAY()","v":"2023-07-05"},{"$f":"YEAR(D3)","v":2023},null,1,null,null,"Acquaviva d'Isernia",null,"INSERIRE NOMINATIVO"]
["SOLIDO ",null,null,null,null,null,2,null,null,"Agnone",null,null,null,null,null,null,"ATTENZIONE: ALCUNI CAMPI MANCANTI"]
["GASSOSO",null,null,null,null,null,3,null,null,"Bagnoli del Trigno",null,null,null,null,null,null,"OK: TUTTI I CAMPI SONO STATI COMPILATI"]
["ELETTRICO",null,null,"PROPRIETARIO",null,null,4,null,null,"Baranello",null,{"$f":"IF('RICHIESTA CODICI IMPIANTI'!A2:B2=\"\",Q4,Q5)","v":{"$error":"#VALUE!"}}]
["GASOLIO",null,null,"SI",null,null,5,null,null,"Belmonte del Sannio"]
["LIQUIDO",null,null,"NO",null,null,6,null,null,"Bojano"]
[null,null,null,null,null,null,7,null,null,"Bonefro"]
[null,null,null,null,null,null,8,null,null,"Busso"]
[null,null,null,null,null,null,9,null,null,"Campobasso"]
[null,null,null,null,null,null,10,null,null,"Campochiaro"]
[null,null,null,null,null,null,11,null,null,"Campodipietra"]
[null,null,null,null,null,null,12,null,null,"Campolieto"]
[null,null,null,null,null,null,13,null,null,"Campomarino"]
[null,null,null,null,null,null,14,null,null,"Cantalupo nel Sannio"]
[null,null,null,null,null,null,15,null,null,"Capracotta"]
[null,null,null,null,null,null,16,null,null,"Carovilli"]
[null,null,null,null,null,null,17,null,null,"Carpinone"]
[null,null,null,null,null,null,18,null,null,"Casacalenda"]
[null,null,null,null,null,null,19,null,null,"Casalciprano"]
[null,null,null,null,null,null,20,null,null,"Castel del Giudice"]
[null,null,null,null,null,null,21,null,null,"Castel San Vincenzo"]
[null,null,null,null,null,null,22,null,null,"Castelbottaccio"]
[null,null,null,null,null,null,23,null,null,"Castellino del Biferno"]
[null,null,null,null,null,null,24,null,null,"Castelmauro"]
[null,null,null,null,null,null,25,null,null,"Castelpetroso"]
[null,null,null,null,null,null,26,null,null,"Castelpizzuto"]
[null,null,null,null,null,null,27,null,null,"Castelverrino"]
[null,null,null,null,null,null,28,null,null,"Castropignano"]
[null,null,null,null,null,null,29,null,null,"Cercemaggiore"]
[null,null,null,null,null,null,30,null,null,"Cercepiccola"]
[null,null,null,null,null,null,31,null,null,"Cerro al Volturno"]
[null,null,null,null,null,null,32,null,null,"Chiauci"]
[null,null,null,null,null,null,33,null,null,"Civitacampomarano"]
[null,null,null,null,null,null,34,null,null,"Civitanova del Sannio"]
[null,null,null,null,null,null,35,null,null,"Colle d'Anchise"]
[null,null,null,null,null,null,36,null,null,"Colletorto"]
[null,null,null,null,null,null,37,null,null,"Colli a Volturno"]
[null,null,null,null,null,null,38,null,null,"Conca Casale"]
[null,null,null,null,null,null,39,null,null,"Duronia"]
[null,null,null,null,null,null,null,null,null,"Ferrazzano"]
[null,null,null,null,null,null,null,null,null,"Filignano"]
[null,null,null,null,null,null,null,null,null,"ForlI' del Sannio"]
[null,null,null,null,null,null,null,null,null,"Fornelli"]
[null,null,null,null,null,null,null,null,null,"Fossalto"]
[null,null,null,null,null,null,null,null,null,"Frosolone"]
[null,null,null,null,null,null,null,null,null,"Gambatesa"]
[null,null,null,null,null,null,null,null,null,"Gildone"]
[null,null,null,null,null,null,null,null,null,"Guardialfiera"]
[null,null,null,null,null,null,null,null,null,"Guardiaregia"]
[null,null,null,null,null,null,null,null,null,"Guglionesi"]
[null,null,null,null,null,null,null,null,null,"Isernia"]
[null,null,null,null,null,null,null,null,null,"Jelsi"]
[null,null,null,null,null,null,null,null,null,"Larino"]
[null,null,null,null,null,null,null,null,null,"Limosano"]
[null,null,null,null,null,null,null,null,null,"Longano"]
[null,null,null,null,null,null,null,null,null,"Lucito"]
[null,null,null,null,null,null,null,null,null,"Lupara"]
[null,null,null,null,null,null,null,null,null,"Macchia d'Isernia"]
[null,null,null,null,null,null,null,null,null,"Macchia Valfortore"]
[null,null,null,null,null,null,null,null,null,"Macchiagodena"]
[null,null,null,null,null,null,null,null,null,"Mafalda"]
[null,null,null,null,null,null,null,null,null,"Matrice"]
[null,null,null,null,null,null,null,null,null,"Mirabello Sannitico"]
[null,null,null,null,null,null,null,null,null,"Miranda"]
[null,null,null,null,null,null,null,null,null,"Molise"]
[null,null,null,null,null,null,null,null,null,"Monacilioni"]
[null,null,null,null,null,null,null,null,null,"Montagano"]
[null,null,null,null,null,null,null,null,null,"Montaquila"]
[null,null,null,null,null,null,null,null,null,"Montecilfone"]
[null,null,null,null,null,null,null,null,null,"Montefalcone nel Sannio"]
[null,null,null,null,null,null,null,null,null,"Montelongo"]
[null,null,null,null,null,null,null,null,null,"Montemitro"]
[null,null,null,null,null,null,null,null,null,"Montenero di Bisaccia"]
[null,null,null,null,null,null,null,null,null,"Montenero Val Cocchiara"]
[null,null,null,null,null,null,null,null,null,"Monteroduni"]
[null,null,null,null,null,null,null,null,null,"Montorio nei Frentani"]
[null,null,null,null,null,null,null,null,null,"Morrone del Sannio"]
[null,null,null,null,null,null,null,null,null,"Oratino"]
[null,null,null,null,null,null,null,null,null,"Palata"]
[null,null,null,null,null,null,null,null,null,"Pesche"]
[null,null,null,null,null,null,null,null,null,"Pescolanciano"]
[null,null,null,null,null,null,null,null,null,"Pescopennataro"]
[null,null,null,null,null,null,null,null,null,"Petacciato"]
[null,null,null,null,null,null,null,null,null,"Petrella Tifernina"]
[null,null,null,null,null,null,null,null,null,"Pettoranello del Molise"]
[null,null,null,null,null,null,null,null,null,"Pietrabbondante"]
[null,null,null,null,null,null,null,null,null,"Pietracatella"]
[null,null,null,null,null,null,null,null,null,"Pietracupa"]
[null,null,null,null,null,null,null,null,null,"Pizzone"]
[null,null,null,null,null,null,null,null,null,"Poggio Sannita"]
[null,null,null,null,null,null,null,null,null,"Portocannone"]
[null,null,null,null,null,null,null,null,null,"Pozzilli"]
[null,null,null,null,null,null,null,null,null,"Provvidenti"]
[null,null,null,null,null,null,null,null,null,"Riccia"]
[null,null,null,null,null,null,null,null,null,"Rionero Sannitico"]
[null,null,null,null,null,null,null,null,null,"Ripabottoni"]
[null,null,null,null,null,null,null,null,null,"Ripalimosani"]
[null,null,null,null,null,null,null,null,null,"Roccamandolfi"]
[null,null,null,null,null,null,null,null,null,"Roccasicura"]
[null,null,null,null,null,null,null,null,null,"Roccavivara"]
[null,null,null,null,null,null,null,null,null,"Rocchetta a Volturno"]
[null,null,null,null,null,null,null,null,null,"Rotello"]
[null,null,null,null,null,null,null,null,null,"Salcito"]
[null,null,null,null,null,null,null,null,null,"San Biase"]
[null,null,null,null,null,null,null,null,null,"San Felice del Molise"]
[null,null,null,null,null,null,null,null,null,"San Giacomo degli Schiavoni"]
[null,null,null,null,null,null,null,null,null,"San Giovanni in Galdo"]
[null,null,null,null,null,null,null,null,null,"San Giuliano del Sannio"]
[null,null,null,null,null,null,null,null,null,"San Giuliano di Puglia"]
[null,null,null,null,null,null,null,null,null,"San Martino in Pensilis"]
[null,null,null,null,null,null,null,null,null,"San Massimo"]
[null,null,null,null,null,null,null,null,null,"San Pietro Avellana"]
[null,null,null,null,null,null,null,null,null,"San Polo Matese"]
[null,null,null,null,null,null,null,null,null,"Santa Croce di Magliano"]
[null,null,null,null,null,null,null,null,null,"Santa Maria del Molise"]
[null,null,null,null,null,null,null,null,null,"Sant'Agapito"]
[null,null,null,null,null,null,null,null,null,"Sant'Angelo del Pesco"]
[null,null,null,null,null,null,null,null,null,"Sant'Angelo Limosano"]
[null,null,null,null,null,null,null,null,null,"Sant'Elena Sannita"]
[null,null,null,null,null,null,null,null,null,"Sant'Elia a Pianisi"]
[null,null,null,null,null,null,null,null,null,"Scapoli"]
[null,null,null,null,null,null,null,null,null,"Sepino"]
[null,null,null,null,null,null,null,null,null,"Sessano del Molise"]
[null,null,null,null,null,null,null,null,null,"Sesto Campano"]
[null,null,null,null,null,null,null,null,null,"Spinete"]
[null,null,null,null,null,null,null,null,null,"Tavenna"]
[null,null,null,null,null,null,null,null,null,"Termoli"]
[null,null,null,null,null,null,null,null,null,"Torella del Sannio"]
[null,null,null,null,null,null,null,null,null,"Toro"]
[null,null,null,null,null,null,null,null,null,"Trivento"]
[null,null,null,null,null,null,null,null,null,"Tufara"]
[null,null,null,null,null,null,null,null,null,"Ururi"]
[null,null,null,null,null,null,null,null,null,"Vastogirardi"]
[null,null,null,null,null,null,null,null,null,"Venafro"]
[null,null,null,null,null,null,null,null,null,"Vinchiaturo"]

{"sheet":"formule condizionali","index":2,"n_rows":585,"n_cols":9,"rows_kept":585,"cut":false,"hidden":true,"merged":[]}
[]
[null,null,null,null,null,null,"ACQUAVIVA COLLECROCE","Acqua dei Ranci [IS]"]
["TEST",5,null,null,null,null,"ACQUAVIVA D'ISERNIA","Castiglione [IS]"]
["METANO","NO: INSERIRE TUTTI I CAMPI!",null,null,null,null,"AGNONE","Castiglioni [IS]"]
["GPL","SI",null,null,null,null,"BAGNOLI DEL TRIGNO","Catrocca [CB]"]
["GASOLIO",null,null,null,null,null,"BARANELLO","Acquasalsa [CB]","VIA"]
["SOLIDO","inserire nominativo",null,null,null,null,"BELMONTE DEL SANNIO","Cauzaro [CB]"]
["ELETTRICO: POMPA DI CALORE","è già proprietario",null,null,null,null,"BOJANO","Acquaviva [IS]","VIALE"]
[null,null,null,null,null,null,"BONEFRO","Acquevive [IS]","VICO"]
[null,null,null,null,"si",null,"BUSSO","Agostino [CB]","VICOLO"]
["1",null,null,null,"no",null,"CAMPOBASSO","Aia della Noce [CB]","PIAZZA"]
["2",null,null,null,null,null,"CAMPOCHIARO","Aia Franca [IS]","PIAZZALE"]
["3",null,null,null,null,null,"CAMPODIPIETRA","Alifana [CB]","BORGATA"]
[{"$f":"TODAY()","v":"2023-07-05"},"\n\n",null,"NUOVO",null,null,"CAMPOLIETO","Alluoro [IS]","BORGO"]
[null,null,null,"SOSTITUZIONE ",null,null,"CAMPOMARINO","Altilia [CB]","STRADA"]
[{"$f":"YEAR(TODAY())","v":2023},null,null,"ESISTENTE",null,null,"CANTALUPO NEL SANNIO","Cava [IS]"]
[null,null,null,null,null,null,"CAPRACOTTA","Cellarelle [CB]"]
[null,null,null,null,null,null,"CAROVILLI","Centomani [IS]"]
[null,null,null,null,null,null,"CARPINONE","Ceppagna [IS]"]
[null,null,null,null,null,null,"CASACALENDA","Annecchiali Primo [CB]","S.S."]
[null,null,null,null,null,null,"CASALCIPRANO","Annecchiali Secondo [CB]","SALITA"]
[null,null,null,null,null,null,"CASTEL DEL GIUDICE","Cerasito di Mezzo [IS]"]
[null,null,null,null,null,null,"CASTEL SAN VINCENZO","Cerasito Inferiore [IS]"]
[null,null,null,null,null,null,"CASTELBOTTACCIO","Anniballi [CB]","TRAVERSA"]
[null,null,null,null,null,null,"CASTELLINO DEL BIFERNO","Ara Vecchia [CB]","CONTRADA"]
[null,null,null,null,null,null,"CASTELMAURO","Barrea [CB]","LOCALITA'"]
[null,null,null,null,null,null,"CASTELPETROSO","Cerasito Superiore [IS]"]
[null,null,null,null,null,null,"CASTELPIZZUTO","Cerasuolo [IS]"]
[null,null,null,null,null,null,"CASTELVERRINO","Cerratino [IS]"]
[null,null,null,null,null,null,"CASTROPIGNANO","Bazzoffie [IS]","VILLAGGIO"]
[null,null,null,null,null,null,"CERCEMAGGIORE","Bivio [IS]","VILLA"]
[null,null,null,null,null,null,"CERCEPICCOLA","Bivio Staffoli [IS]"]
[null,null,null,null,null,null,"CERRO AL VOLTURNO","Cerreta [IS]"]
[null,null,null,null,null,null,"CHIAUCI","Cerreto [CB]"]
[null,null,null,null,null,null,"CIVITACAMPOMARANO","Borgata Le Noci [IS]"]
[null,null,null,null,null,null,"CIVITANOVA DEL SANNIO","Cerreto [IS]"]
[null,null,null,null,null,null,"COLLE D'ANCHISE","Bottazzella [IS]"]
[null,null,null,null,null,null,"COLLETORTO","Breccelle [IS]"]
[null,null,null,null,null,null,"COLLI A VOLTURNO","Cerreto [IS]"]
[null,null,null,null,null,null,"CONCA CASALE","Cerreto [IS]"]
[null,null,null,null,null,null,"DURONIA","Brecciosa [CB]"]
[null,null,null,null,null,null,"FERRAZZANO","Briccioso [IS]"]
[null,null,null,null,null,null,"FILIGNANO","Cerreto Sant'Angelo [CB]"]
[null,null,null,null,null,null,"FORLI' DEL SANNIO","Cerro [CB]"]
[null,null,null,null,null,null,"FORNELLI","Cerro [CB]"]
[null,null,null,null,null,null,"FOSSALTO","Bufalara [CB]"]
[null,null,null,null,null,null,"FROSOLONE","Cese [IS]"]
[null,null,null,null,null,null,"GAMBATESA","Caccavelli [CB]"]
[null,null,null,null,null,null,"GILDONE","Cacerno [CB]"]
[null,null,null,null,null,null,"GUARDIALFIERA","Cagnacci [IS]"]
[null,null,null,null,null,null,"GUARDIAREGIA","Calcarella [CB]"]
[null,null,null,null,null,null,"GUGLIONESI","Calvario [CB]"]
[null,null,null,null,null,null,"ISERNIA","Cese Carrate [IS]"]
[null,null,null,null,null,null,"JELSI","Calvario [CB]"]
[null,null,null,null,null,null,"LARINO","Camere [IS]"]
[null,null,null,null,null,null,"LIMOSANO","Campate [CB]"]
[null,null,null,null,null,null,"LONGANO","Chiovitti [CB]"]
[null,null,null,null,null,null,"LUCITO","Campi Marzi [CB]"]
[null,null,null,null,null,null,"LUPARA","Campitello Matese [CB]"]
[null,null,null,null,null,null,"MACCHIA D'ISERNIA","Chiuselle [IS]"]
[null,null,null,null,null,null,"MACCHIA VALFORTORE","Campo la Fontana [IS]"]
[null,null,null,null,null,null,"MACCHIAGODENA","Cianaluca [CB]"]
[null,null,null,null,null,null,"MAFALDA","Campo Sant'Angelo [IS]"]
[null,null,null,null,null,null,"MATRICE","Campopino [IS]"]
[null,null,null,null,null,null,"MIRABELLO SANNITICO","Camposaccone [IS]"]
[null,null,null,null,null,null,"MIRANDA","Ciavocco [IS]"]
[null,null,null,null,null,null,"MOLISE","Camposarcone [CB]"]
[null,null,null,null,null,null,"MONACILIONI","Canale [CB]"]
[null,null,null,null,null,null,"MONTAGANO","Canale [CB]"]
[null,null,null,null,null,null,"MONTAQUILA","Ciccaglione [CB]"]
[null,null,null,null,null,null,"MONTECILFONE","Canale [CB]"]
[null,null,null,null,null,null,"MONTEFALCONE NEL SANNIO","Cannine [IS]"]
[null,null,null,null,null,null,"MONTELONGO","Canonica [CB]"]
[null,null,null,null,null,null,"MONTEMITRO","Cantoni [CB]"]
[null,null,null,null,null,null,"MONTENERO DI BISACCIA","Capestrino [IS]"]
[null,null,null,null,null,null,"MONTENERO VAL COCCHIARA","Cicco di Toro [CB]"]
[null,null,null,null,null,null,"MONTERODUNI","Civita Superiore [CB]"]
[null,null,null,null,null,null,"MONTORIO NEI FRENTANI","Capoiaccio [CB]"]
[null,null,null,null,null,null,"MORRONE DEL SANNIO","Caporio [IS]"]
[null,null,null,null,null,null,"ORATINO","Capotrio [IS]"]
[null,null,null,null,null,null,"PALATA","Cappella [CB]"]
[null,null,null,null,null,null,"PESCHE","Civitella [CB]"]
[null,null,null,null,null,null,"PESCOLANCIANO","Codacchio [CB]"]
[null,null,null,null,null,null,"PESCOPENNATARO","Colanonni [IS]"]
[null,null,null,null,null,null,"PETACCIATO","Cappiello [CB]"]
[null,null,null,null,null,null,"PETRELLA TIFERNINA","Carpinete [IS]"]
[null,null,null,null,null,null,"PETTORANELLO DEL MOLISE","Colantuono [CB]"]
[null,null,null,null,null,null,"PIETRABBONDANTE","Colardoni [IS]"]
[null,null,null,null,null,null,"PIETRACATELLA","Casa Zapponi [CB]"]
[null,null,null,null,null,null,"PIETRACUPA","Casabona [IS]"]
[null,null,null,null,null,null,"PIZZONE","Collalto [IS]"]
[null,null,null,null,null,null,"POGGIO SANNITA","Colle [IS]"]
[null,null,null,null,null,null,"PORTOCANNONE","Casale [CB]"]
[null,null,null,null,null,null,"POZZILLI","Colle Arso [CB]"]
[null,null,null,null,null,null,"PROVVIDENTI","Casale [CB]"]
[null,null,null,null,null,null,"RICCIA","Casale [IS]"]
[null,null,null,null,null,null,"RIONERO SANNITICO","Colle Bove [CB]"]
[null,null,null,null,null,null,"RIPABOTTONI","Casalene [CB]"]
[null,null,null,null,null,null,"RIPALIMOSANI","Casali [IS]"]
[null,null,null,null,null,null,"ROCCAMANDOLFI","Colle Cioffi [IS]"]
[null,null,null,null,null,null,"ROCCASICURA","Colle Croce Primo [IS]"]
[null,null,null,null,null,null,"ROCCAVIVARA","Casalotto [CB]"]
[null,null,null,null,null,null,"ROCCHETTA A VOLTURNO","Colle Croce Secondo [IS]"]
[null,null,null,null,null,null,"ROTELLO","Case [IS]"]
[null,null,null,null,null,null,"SALCITO","Case Prusciello [CB]"]
[null,null,null,null,null,null,"SAN BIASE","Case Sant'Antonio Abate [CB]"]
[null,null,null,null,null,null,"SAN FELICE DEL MOLISE","Case Tilli Tilli [CB]"]
[null,null,null,null,null,null,"SAN GIACOMO DEGLI SCHIAVONI","Casello Ferroviario [CB]"]
[null,null,null,null,null,null,"SAN GIOVANNI IN GALDO","Caselvatico [CB]"]
[null,null,null,null,null,null,"SAN GIULIANO DEL SANNIO","Casino Barone [CB]"]
[null,null,null,null,null,null,"SAN GIULIANO DI PUGLIA","Casone Cantalupo [CB]"]
[null,null,null,null,null,null,"SAN MARTINO IN PENSILIS","Castagna [CB]"]
[null,null,null,null,null,null,"SAN MASSIMO","Castel di Croce (Macchiabovino) [IS]"]
[null,null,null,null,null,null,"SAN PIETRO AVELLANA","Colle Cucchiarone [CB]"]
[null,null,null,null,null,null,"SAN POLO MATESE","Casteldicroce (Scuola) [IS]"]
[null,null,null,null,null,null,"SANTA CROCE DI MAGLIANO","Casteldicroce (Scuordo) [IS]"]
[null,null,null,null,null,null,"SANTA MARIA DEL MOLISE","Colle dell'Orso [CB]"]
[null,null,null,null,null,null,"SANT'AGAPITO","Colle della Corte [CB]"]
[null,null,null,null,null,null,"SANT'ANGELO DEL PESCO","Colle della Stella [CB]"]
[null,null,null,null,null,null,"SANT'ANGELO LIMOSANO","Casteldicroce (Vuttaro) [IS]"]
[null,null,null,null,null,null,"SANT'ELENA SANNITA","Colle delle Api [CB]"]
[null,null,null,null,null,null,"SANT'ELIA A PIANISI","Castellana [IS]"]
[null,null,null,null,null,null,"SCAPOLI","Colle Florio [CB]"]
[null,null,null,null,null,null,"SEPINO","Castellaro [CB]"]
[null,null,null,null,null,null,"SESSANO DEL MOLISE","Colle Grotta [IS]"]
[null,null,null,null,null,null,"SESTO CAMPANO","Colle Grotte [IS]"]
[null,null,null,null,null,null,"SPINETE","Castellelce [CB]"]
[null,null,null,null,null,null,"TAVENNA","Castellino Nuovo [CB]"]
[null,null,null,null,null,null,"TERMOLI","Castello [IS]"]
[null,null,null,null,null,null,"TORELLA DEL SANNIO","Castello [IS]"]
[null,null,null,null,null,null,"TORO","Castellone [CB]"]
[null,null,null,null,null,null,"TRIVENTO","Castelluccio [IS]"]
[null,null,null,null,null,null,"TUFARA","Castelnuovo al Volturno [IS]"]
[null,null,null,null,null,null,"URURI","Castelromano [IS]"]
[null,null,null,null,null,null,"VASTOGIRARDI","Colle Longo [CB]"]
[null,null,null,null,null,null,"VENAFRO","Colle Manieri [IS]"]
[null,null,null,null,null,null,"VINCHIATURO","Castiglione [IS]"]
[null,null,null,null,null,null,null,"Colle Marcello [CB]"]
[null,null,null,null,null,null,null,"Colle Martino [IS]"]
[null,null,null,null,null,null,null,"Colle Masserie [IS]"]
[null,null,null,null,null,null,null,"Colle Monte [CB]"]
[null,null,null,null,null,null,null,"Colle Morello [IS]"]
[null,null,null,null,null,null,null,"Colle Pagano [IS]"]
[null,null,null,null,null,null,null,"Colle Pepe [IS]"]
[null,null,null,null,null,null,null,"Colle Piano [IS]"]
[null,null,null,null,null,null,null,"Colle San Marco [CB]"]
[null,null,null,null,null,null,null,"Colle Sinacchio [IS]"]
[null,null,null,null,null,null,null,"Collecarrise [IS]"]
[null,null,null,null,null,null,null,"Collefava [IS]"]
[null,null,null,null,null,null,null,"Collemacchia [IS]"]
[null,null,null,null,null,null,null,"Collemarraco [CB]"]
[null,null,null,null,null,null,null,"Collematteo [IS]"]
[null,null,null,null,null,null,null,"Collesorbo [IS]"]
[null,null,null,null,null,null,null,"Collevavuso [IS]"]
[null,null,null,null,null,null,null,"Colli [CB]"]
[null,null,null,null,null,null,null,"Conocchia [IS]"]
[null,null,null,null,null,null,null,"Contrada Abbazia [CB]"]
[null,null,null,null,null,null,null,"Contrada Campofreddo [CB]"]
[null,null,null,null,null,null,null,"Contrada Casone Pacca [CB]"]
[null,null,null,null,null,null,null,"Contrada Cataniello [CB]"]
[null,null,null,null,null,null,null,"Contrada Macere [IS]"]
[null,null,null,null,null,null,null,"Contrada Piane [CB]"]
[null,null,null,null,null,null,null,"Contrada Piane [CB]"]
[null,null,null,null,null,null,null,"Contrada Piano Casale [CB]"]
[null,null,null,null,null,null,null,"Contrada Scalo Ferroviario [CB]"]
[null,null,null,null,null,null,null,"Contrada Stazione [CB]"]
[null,null,null,null,null,null,null,"Convento [CB]"]
[null,null,null,null,null,null,null,"Convento Sant'Onofrio [CB]"]
[null,null,null,null,null,null,null,"Conze [IS]"]
[null,null,null,null,null,null,null,"Coperchiata [IS]"]
[null,null,null,null,null,null,null,"Coppari [CB]"]
[null,null,null,null,null,null,null,"Coppolicchio [IS]"]
[null,null,null,null,null,null,null,"Coriemano [IS]"]
[null,null,null,null,null,null,null,"Coscia del Ponte [CB]"]
[null,null,null,null,null,null,null,"Coscia di Ponte [CB]"]
[null,null,null,null,null,null,null,"Costa Casale [CB]"]
[null,null,null,null,null,null,null,"Coste [CB]"]
[null,null,null,null,null,null,null,"Coste [IS]"]
[null,null,null,null,null,null,null,"Coste Crugnali [CB]"]
[null,null,null,null,null,null,null,"Coste di Oratino [CB]"]
[null,null,null,null,null,null,null,"Coste di Sopra [IS]"]
[null,null,null,null,null,null,null,"Coste San Nazzaro [IS]"]
[null,null,null,null,null,null,null,"Criscio [CB]"]
[null,null,null,null,null,null,null,"Crocella [CB]"]
[null,null,null,null,null,null,null,"Cucciolone [CB]"]
[null,null,null,null,null,null,null,"Cupa del Medico [CB]"]
[null,null,null,null,null,null,null,"Cupone [IS]"]
[null,null,null,null,null,null,null,"Cutoni [IS]"]
[null,null,null,null,null,null,null,"Di Florio [CB]"]
[null,null,null,null,null,null,null,"Difesa [IS]"]
[null,null,null,null,null,null,null,"Faito [CB]"]
[null,null,null,null,null,null,null,"Fasani [CB]"]
[null,null,null,null,null,null,null,"Feudo Primo [CB]"]
[null,null,null,null,null,null,null,"Feudo Secondo [CB]"]
[null,null,null,null,null,null,null,"Foci [IS]"]
[null,null,null,null,null,null,null,"Fontana Cappella [CB]"]
[null,null,null,null,null,null,null,"Fonte [CB]"]
[null,null,null,null,null,null,null,"Fonte Amica [CB]"]
[null,null,null,null,null,null,null,"Fonte Casale [CB]"]
[null,null,null,null,null,null,null,"Fonte Cupa [CB]"]
[null,null,null,null,null,null,null,"Fonte dei Ceci [CB]"]
[null,null,null,null,null,null,null,"Fonte dei Serpi [CB]"]
[null,null,null,null,null,null,null,"Fonte del Cerro [CB]"]
[null,null,null,null,null,null,null,"Fonte delle Felci [CB]"]
[null,null,null,null,null,null,null,"Fonte di Tonno [CB]"]
[null,null,null,null,null,null,null,"Fonte Ferrara [CB]"]
[null,null,null,null,null,null,null,"Fonte Garile [CB]"]
[null,null,null,null,null,null,null,"Fonte la Cesa [CB]"]
[null,null,null,null,null,null,null,"Fonte la Noce [CB]"]
[null,null,null,null,null,null,null,"Fonte La Vite [CB]"]
[null,null,null,null,null,null,null,"Fonte Polo [CB]"]
[null,null,null,null,null,null,null,"Fonte Sant'Angelo [IS]"]
[null,null,null,null,null,null,null,"Fonte Senigallia [CB]"]
[null,null,null,null,null,null,null,"Fontecostanza [IS]"]
[null,null,null,null,null,null,null,"Fontecurello-Vaglie [IS]"]
[null,null,null,null,null,null,null,"Fonteiaova [CB]"]
[null,null,null,null,null,null,null,"Fontelavilla [IS]"]
[null,null,null,null,null,null,null,"Fontesambuco [IS]"]
[null,null,null,null,null,null,null,"Fonticelle [IS]"]
[null,null,null,null,null,null,null,"Foresta [IS]"]
[null,null,null,null,null,null,null,"Formelle [CB]"]
[null,null,null,null,null,null,null,"Fornelle [CB]"]
[null,null,null,null,null,null,null,"Fossato Cupo [CB]"]
[null,null,null,null,null,null,null,"Fosso San Biase [IS]"]
[null,null,null,null,null,null,null,"Fragnete [IS]"]
[null,null,null,null,null,null,null,"Fragnete Primo (Ex Fragnette) [IS]"]
[null,null,null,null,null,null,null,"Fragnete Secondo [IS]"]
[null,null,null,null,null,null,null,"Franchitti [IS]"]
[null,null,null,null,null,null,null,"Fratte [IS]"]
[null,null,null,null,null,null,null,"Fuorlo [IS]"]
[null,null,null,null,null,null,null,"Galardi [CB]"]
[null,null,null,null,null,null,null,"Gambolongo [CB]"]
[null,null,null,null,null,null,null,"Gaudo [CB]"]
[null,null,null,null,null,null,null,"Gauta [IS]"]
[null,null,null,null,null,null,null,"Gennaretto [CB]"]
[null,null,null,null,null,null,null,"Giardini [CB]"]
[null,null,null,null,null,null,null,"Giliotto [CB]"]
[null,null,null,null,null,null,null,"Grondari [CB]"]
[null,null,null,null,null,null,null,"Guadocavalli [CB]"]
[null,null,null,null,null,null,null,"Guadovito [IS]"]
[null,null,null,null,null,null,null,"Guasto [IS]"]
[null,null,null,null,null,null,null,"I Cerri [IS]"]
[null,null,null,null,null,null,null,"Iacovantuono [CB]"]
[null,null,null,null,null,null,null,"Imperato [CB]"]
[null,null,null,null,null,null,null,"Incoronata [IS]"]
[null,null,null,null,null,null,null,"Indiprete [IS]"]
[null,null,null,null,null,null,null,"Iontapede [CB]"]
[null,null,null,null,null,null,null,"La Cartiera [IS]"]
[null,null,null,null,null,null,null,"Labate [IS]"]
[null,null,null,null,null,null,null,"Lago Ranallo [CB]"]
[null,null,null,null,null,null,null,"Lagoni [IS]"]
[null,null,null,null,null,null,null,"Largo Zullo-Sterparo [CB]"]
[null,null,null,null,null,null,null,"Le Coste [IS]"]
[null,null,null,null,null,null,null,"Leone [IS]"]
[null,null,null,null,null,null,null,"Licco [CB]"]
[null,null,null,null,null,null,null,"Lido Campomarino [CB]"]
[null,null,null,null,null,null,null,"Litorale Nord [CB]"]
[null,null,null,null,null,null,null,"Loie [CB]"]
[null,null,null,null,null,null,null,"Lucenteforte [IS]"]
[null,null,null,null,null,null,null,"Lupara [CB]"]
[null,null,null,null,null,null,null,"Macchia la Cerva [IS]"]
[null,null,null,null,null,null,null,"Macchia Santa Maria [CB]"]
[null,null,null,null,null,null,null,"Macchiarelli [CB]"]
[null,null,null,null,null,null,null,"Macchie [CB]"]
[null,null,null,null,null,null,null,"Macchie [CB]"]
[null,null,null,null,null,null,null,"Macchie [CB]"]
[null,null,null,null,null,null,null,"Macchione [CB]"]
[null,null,null,null,null,null,null,"Madonna delle Grazie [IS]"]
[null,null,null,null,null,null,null,"Madonnella [CB]"]
[null,null,null,null,null,null,null,"Malatesta [CB]"]
[null,null,null,null,null,null,null,"Mancini [CB]"]
[null,null,null,null,null,null,null,"Mancini [IS]"]
[null,null,null,null,null,null,null,"Manocchio [CB]"]
[null,null,null,null,null,null,null,"Marasa [CB]"]
[null,null,null,null,null,null,null,"Marcantonio [CB]"]
[null,null,null,null,null,null,null,"Marina di Montenero [CB]"]
[null,null,null,null,null,null,null,"Marini [IS]"]
[null,null,null,null,null,null,null,"Marpione [CB]"]
[null,null,null,null,null,null,null,"Martina [CB]"]
[null,null,null,null,null,null,null,"Martine [CB]"]
[null,null,null,null,null,null,null,"Martinelli [CB]"]
[null,null,null,null,null,null,null,"Martini [IS]"]
[null,null,null,null,null,null,null,"Mascione [CB]"]
[null,null,null,null,null,null,null,"Masella [IS]"]
[null,null,null,null,null,null,null,"Massari [CB]"]
[null,null,null,null,null,null,null,"Masseria Abbazia [CB]"]
[null,null,null,null,null,null,null,"Masseria Battista [CB]"]
[null,null,null,null,null,null,null,"Masseria Bosco Pontoni [CB]"]
[null,null,null,null,null,null,null,"Masseria Capruccia [IS]"]
[null,null,null,null,null,null,null,"Masseria Chicheri [IS]"]
[null,null,null,null,null,null,null,"Masseria D'Amario [CB]"]
[null,null,null,null,null,null,null,"Masseria D'Elisis [CB]"]
[null,null,null,null,null,null,null,"Masseria di Rio [IS]"]
[null,null,null,null,null,null,null,"Masseria Feliciona [CB]"]
[null,null,null,null,null,null,null,"Masseria Ferrantello [CB]"]
[null,null,null,null,null,null,null,"Masseria Franciosi [IS]"]
[null,null,null,null,null,null,null,"Masseria Greco [CB]"]
[null,null,null,null,null,null,null,"Masseria Iovine [CB]"]
[null,null,null,null,null,null,null,"Masseria Maravecchia [IS]"]
[null,null,null,null,null,null,null,"Masseria Palumbo [CB]"]
[null,null,null,null,null,null,null,"Masseria Parenti [CB]"]
[null,null,null,null,null,null,null,"Masseria Pitoscia [CB]"]
[null,null,null,null,null,null,null,"Masseria Serramanno [CB]"]
[null,null,null,null,null,null,null,"Masseria Spensieri [CB]"]
[null,null,null,null,null,null,null,"Masseria Stallone [CB]"]
[null,null,null,null,null,null,null,"Masseria Sticozze [CB]"]
[null,null,null,null,null,null,null,"Masseria Strada Vecchia [CB]"]
[null,null,null,null,null,null,null,"Masserie Belladonna [IS]"]
[null,null,null,null,null,null,null,"Masserie Bellizzi [IS]"]
[null,null,null,null,null,null,null,"Masserie Cardillo [IS]"]
[null,null,null,null,null,null,null,"Masserie Celilli [IS]"]
[null,null,null,null,null,null,null,"Masserie Ciccagne [CB]"]
[null,null,null,null,null,null,null,"Masserie della Canala [IS]"]
[null,null,null,null,null,null,null,"Masserie di Cristo [IS]"]
[null,null,null,null,null,null,null,"Masserie di Santo [IS]"]
[null,null,null,null,null,null,null,"Masserie Ferretti [IS]"]
[null,null,null,null,null,null,null,"Masserie Griguoli [CB]"]
[null,null,null,null,null,null,null,"Masserie La Corte Prima [IS]"]
[null,null,null,null,null,null,null,"Masserie La Corte Secondo [IS]"]
[null,null,null,null,null,null,null,"Masserie Lotto [IS]"]
[null,null,null,null,null,null,null,"Masserie Mastroiacovo [CB]"]
[null,null,null,null,null,null,null,"Masserie Mucciafera [IS]"]
[null,null,null,null,null,null,null,"Masserie Porfilio [IS]"]
[null,null,null,null,null,null,null,"Masserie Secchiaro [IS]"]
[null,null,null,null,null,null,null,"Masserie Tedeschi [CB]"]
[null,null,null,null,null,null,null,"Masserie Tedeschi [IS]"]
[null,null,null,null,null,null,null,"Masserie Tomaro [CB]"]
[null,null,null,null,null,null,null,"Mastro Giovanni [IS]"]
[null,null,null,null,null,null,null,"Mastroleoni [IS]"]
[null,null,null,null,null,null,null,"Mencaro [CB]"]
[null,null,null,null,null,null,null,"Mennella [IS]"]
[null,null,null,null,null,null,null,"Migliarese [CB]"]
[null,null,null,null,null,null,null,"Mimosa [CB]"]
[null,null,null,null,null,null,null,"Montagna [CB]"]
[null,null,null,null,null,null,null,"Montagna [CB]"]
[null,null,null,null,null,null,null,"Montalto [IS]"]
[null,null,null,null,null,null,null,"Monte [CB]"]
[null,null,null,null,null,null,null,"Monte [CB]"]
[null,null,null,null,null,null,null,"Monte Piano [CB]"]
[null,null,null,null,null,null,null,"Montevecchio [CB]"]
[null,null,null,null,null,null,null,"Monteverde [CB]"]
[null,null,null,null,null,null,null,"Monteverde [CB]"]
[null,null,null,null,null,null,null,"Montevergine [CB]"]
[null,null,null,null,null,null,null,"Monti [CB]"]
[null,null,null,null,null,null,null,"Morena [CB]"]
[null,null,null,null,null,null,null,"Morgia [CB]"]
[null,null,null,null,null,null,null,"Morgia Campanaro [CB]"]
[null,null,null,null,null,null,null,"Mucchi [IS]"]
[null,null,null,null,null,null,null,"Mustaccio [CB]"]
[null,null,null,null,null,null,null,"Nardoni [CB]"]
[null,null,null,null,null,null,null,"Nerico [CB]"]
[null,null,null,null,null,null,null,"Nuova Cliternia [CB]"]
[null,null,null,null,null,null,null,"Nuova Comunità [CB]"]
[null,null,null,null,null,null,null,"Omero [IS]"]
[null,null,null,null,null,null,null,"Orfanatrofio [IS]"]
[null,null,null,null,null,null,null,"Ospedale [CB]"]
[null,null,null,null,null,null,null,"Ovedino [IS]"]
[null,null,null,null,null,null,null,"Paduli [IS]"]
[null,null,null,null,null,null,null,"Pagliaia di Cerro [IS]"]
[null,null,null,null,null,null,null,"Pagliarelle [IS]"]
[null,null,null,null,null,null,null,"Pagliarone [IS]"]
[null,null,null,null,null,null,null,"Pallotta [CB]"]
[null,null,null,null,null,null,null,"Pantanello [CB]"]
[null,null,null,null,null,null,null,"Pantaniello [IS]"]
[null,null,null,null,null,null,null,"Pantano [IS]"]
[null,null,null,null,null,null,null,"Paoletta [CB]"]
[null,null,null,null,null,null,null,"Parrucce [IS]"]
[null,null,null,null,null,null,null,"Pastena [IS]"]
[null,null,null,null,null,null,null,"Pedincona [IS]"]
[null,null,null,null,null,null,null,"Pelato [CB]"]
[null,null,null,null,null,null,null,"Penna [CB]"]
[null,null,null,null,null,null,null,"Pesco Farese [CB]"]
[null,null,null,null,null,null,null,"Pesco Morelli [CB]"]
[null,null,null,null,null,null,null,"Pesco San Nicola [CB]"]
[null,null,null,null,null,null,null,"Pesco Strascino [CB]"]
[null,null,null,null,null,null,null,"Pescocupo [CB]"]
[null,null,null,null,null,null,null,"Pescocupo [IS]"]
[null,null,null,null,null,null,null,"Pescullo [CB]"]
[null,null,null,null,null,null,null,"Petacciato Marina [CB]"]
[null,null,null,null,null,null,null,"Petrara [IS]"]
[null,null,null,null,null,null,null,"Petrilli Primo [CB]"]
[null,null,null,null,null,null,null,"Petrilli Secondo [CB]"]
[null,null,null,null,null,null,null,"Petroccolo [CB]"]
[null,null,null,null,null,null,null,"Petrole Primo [CB]"]
[null,null,null,null,null,null,null,"Petrole Secondo [CB]"]
[null,null,null,null,null,null,null,"Piana [CB]"]
[null,null,null,null,null,null,null,"Piana Altare [CB]"]
[null,null,null,null,null,null,null,"Piana Casale [CB]"]
[null,null,null,null,null,null,null,"Piana d'Olmo [CB]"]
[null,null,null,null,null,null,null,"Piana d'Olmo [CB]"]
[null,null,null,null,null,null,null,"Piana di Sciarra [CB]"]
[null,null,null,null,null,null,null,"Piana Macaro [CB]"]
[null,null,null,null,null,null,null,"Piano d'Ischia [IS]"]
[null,null,null,null,null,null,null,"Piano di Luzio [CB]"]
[null,null,null,null,null,null,null,"Pietradonata [IS]"]
[null,null,null,null,null,null,null,"Pietroneri [CB]"]
[null,null,null,null,null,null,null,"Pilone [CB]"]
[null,null,null,null,null,null,null,"Piscero [CB]"]
[null,null,null,null,null,null,null,"Piscinelli [CB]"]
[null,null,null,null,null,null,null,"Pitti [CB]"]
[null,null,null,null,null,null,null,"Pizzillitti [IS]"]
[null,null,null,null,null,null,null,"Poggio Verde [CB]"]
[null,null,null,null,null,null,null,"Polese [CB]"]
[null,null,null,null,null,null,null,"Ponte [IS]"]
[null,null,null,null,null,null,null,"Ponte 13 Archi [CB]"]
[null,null,null,null,null,null,null,"Ponte Cinque Archi [CB]"]
[null,null,null,null,null,null,null,"Ponte della Vandra [IS]"]
[null,null,null,null,null,null,null,"Ponte di Tavole [CB]"]
[null,null,null,null,null,null,null,"Pontenovo [IS]"]
[null,null,null,null,null,null,null,"Pontenuovo [IS]"]
[null,null,null,null,null,null,null,"Ponticelli [CB]"]
[null,null,null,null,null,null,null,"Pontoni Primo [CB]"]
[null,null,null,null,null,null,null,"Pontoni Quarto [CB]"]
[null,null,null,null,null,null,null,"Pontoni Quinto [CB]"]
[null,null,null,null,null,null,null,"Pontoni Secondo [CB]"]
[null,null,null,null,null,null,null,"Pontoni Sesto [CB]"]
[null,null,null,null,null,null,null,"Pontoni Terzo [CB]"]
[null,null,null,null,null,null,null,"Pozzo Canniello [IS]"]
[null,null,null,null,null,null,null,"Predalve [IS]"]
[null,null,null,null,null,null,null,"Quadri [CB]"]
[null,null,null,null,null,null,null,"Quartarella [CB]"]
[null,null,null,null,null,null,null,"Quarto Secondo (Caino) [IS]"]
[null,null,null,null,null,null,null,"Quarto Secondo (Scuola) [IS]"]
[null,null,null,null,null,null,null,"Querciapiana Prima [CB]"]
[null,null,null,null,null,null,null,"Querciapiana Seconda [CB]"]
[null,null,null,null,null,null,null,"Raddi [IS]"]
[null,null,null,null,null,null,null,"Redealto [CB]"]
[null,null,null,null,null,null,null,"Reine [CB]"]
[null,null,null,null,null,null,null,"Rigaini [IS]"]
[null,null,null,null,null,null,null,"Riglioni [CB]"]
[null,null,null,null,null,null,null,"Rio [CB]"]
[null,null,null,null,null,null,null,"Rio Freddo [CB]"]
[null,null,null,null,null,null,null,"Rio Verdaro [CB]"]
[null,null,null,null,null,null,null,"Rocca [CB]"]
[null,null,null,null,null,null,null,"Roccapipirozzi [IS]"]
[null,null,null,null,null,null,null,"Roccaravindola [IS]"]
[null,null,null,null,null,null,null,"Roccaspromonte [CB]"]
[null,null,null,null,null,null,null,"Rocchetta Alta [IS]"]
[null,null,null,null,null,null,null,"Rocchetta Nuova [IS]"]
[null,null,null,null,null,null,null,"Ruo Piano [CB]"]
[null,null,null,null,null,null,null,"Sagrestano [IS]"]
[null,null,null,null,null,null,null,"Salera [CB]"]
[null,null,null,null,null,null,null,"Salietto [IS]"]
[null,null,null,null,null,null,null,"San Cataldo [IS]"]
[null,null,null,null,null,null,null,"San Crescenzo [CB]"]
[null,null,null,null,null,null,null,"San Felice [CB]"]
[null,null,null,null,null,null,null,"San Giovanni [CB]"]
[null,null,null,null,null,null,null,"San Giovanni [IS]"]
[null,null,null,null,null,null,null,"San Giovanni Cerreto [CB]"]
[null,null,null,null,null,null,null,"San Giovanni dei Gelsi [CB]"]
[null,null,null,null,null,null,null,"San Giovanni in Golfo Primo [CB]"]
[null,null,null,null,null,null,null,"San Giovanni in Golfo Secondo [CB]"]
[null,null,null,null,null,null,null,"San Leo [IS]"]
[null,null,null,null,null,null,null,"San Leonardo [CB]"]
[null,null,null,null,null,null,null,"San Leonardo [CB]"]
[null,null,null,null,null,null,null,"San Leucio [CB]"]
[null,null,null,null,null,null,null,"San Marco [CB]"]
[null,null,null,null,null,null,null,"San Martino [CB]"]
[null,null,null,null,null,null,null,"San Nazzaro [IS]"]
[null,null,null,null,null,null,null,"San Nicola [CB]"]
[null,null,null,null,null,null,null,"San Nicola delle Fratte [CB]"]
[null,null,null,null,null,null,null,"San Nicola Primo [CB]"]
[null,null,null,null,null,null,null,"San Nicola Secondo [CB]"]
[null,null,null,null,null,null,null,"San Pietro in Valle [IS]"]
[null,null,null,null,null,null,null,"San Sisto [IS]"]
[null,null,null,null,null,null,null,"San Vito [CB]"]
[null,null,null,null,null,null,null,"San Vito [CB]"]
[null,null,null,null,null,null,null,"San Vito [CB]"]
[null,null,null,null,null,null,null,"San Vito Inferiore [CB]"]
[null,null,null,null,null,null,null,"San Vito Superiore [CB]"]
[null,null,null,null,null,null,null,"San Vittorino [IS]"]
[null,null,null,null,null,null,null,"Sant'Agnese [CB]"]
[null,null,null,null,null,null,null,"Sant'Andrea [IS]"]
[null,null,null,null,null,null,null,"Sant'Angelo in Grotte [IS]"]
[null,null,null,null,null,null,null,"Sant'Anna [IS]"]
[null,null,null,null,null,null,null,"Sant'Antonio [CB]"]
[null,null,null,null,null,null,null,"Sant'Eusanio [IS]"]
[null,null,null,null,null,null,null,"Sant'Onofrio [IS]"]
[null,null,null,null,null,null,null,"Santa Croce [CB]"]
[null,null,null,null,null,null,null,"Santa Giusta [IS]"]
[null,null,null,null,null,null,null,"Santa Iusta Pisano [IS]"]
[null,null,null,null,null,null,null,"Santa Iusta San Matteo [IS]"]
[null,null,null,null,null,null,null,"Santa Lucia [IS]"]
[null,null,null,null,null,null,null,"Santa Maria [IS]"]
[null,null,null,null,null,null,null,"Santa Maria de Foras [CB]"]
[null,null,null,null,null,null,null,"Santa Maria delle Macchie [CB]"]
[null,null,null,null,null,null,null,"Santa Maria in Pantano [IS]"]
[null,null,null,null,null,null,null,"Santa Maria la Noce-Difesa Cordari [IS]"]
[null,null,null,null,null,null,null,"Santa Maria Oliveto [IS]"]
[null,null,null,null,null,null,null,"Santacaterina [IS]"]
[null,null,null,null,null,null,null,"Santaniello [CB]"]
[null,null,null,null,null,null,null,"Santilli [IS]"]
[null,null,null,null,null,null,null,"Santo Ianni [CB]"]
[null,null,null,null,null,null,null,"Santo Ianni [IS]"]
[null,null,null,null,null,null,null,"Santo Ianni [IS]"]
[null,null,null,null,null,null,null,"Santo Ianni Pescola [IS]"]
[null,null,null,null,null,null,null,"Santo Ianno [CB]"]
[null,null,null,null,null,null,null,"Santo Janni [CB]"]
[null,null,null,null,null,null,null,"Santo Janni Marinelli [IS]"]
[null,null,null,null,null,null,null,"Santo Stefano [CB]"]
[null,null,null,null,null,null,null,"Scalo Ferroviario [CB]"]
[null,null,null,null,null,null,null,"Scalo Ferroviario [IS]"]
[null,null,null,null,null,null,null,"Scalo Ferroviario [IS]"]
[null,null,null,null,null,null,null,"Sebbioni [CB]"]
[null,null,null,null,null,null,null,"Selvafranca [CB]"]
[null,null,null,null,null,null,null,"Selvapiana [CB]"]
[null,null,null,null,null,null,null,"Selvone [IS]"]
[null,null,null,null,null,null,null,"Selvotta [IS]"]
[null,null,null,null,null,null,null,"Serra Carpini [IS]"]
[null,null,null,null,null,null,null,"Sodalarga [IS]"]
[null,null,null,null,null,null,null,"Soglioni [CB]"]
[null,null,null,null,null,null,null,"Sorbo San Michele [CB]"]
[null,null,null,null,null,null,null,"Starze [IS]"]
[null,null,null,null,null,null,null,"Stazione di Bonefro-Santa Croce [CB]"]
[null,null,null,null,null,null,null,"Stazione di Ripabottoni-Sant'Elia [CB]"]
[null,null,null,null,null,null,null,"Stazione di Roccaravindola [IS]"]
[null,null,null,null,null,null,null,"Stazione di San Pietro Avellana [IS]"]
[null,null,null,null,null,null,null,"Sterpara del Piano [CB]"]
[null,null,null,null,null,null,null,"Sterparello [CB]"]
[null,null,null,null,null,null,null,"Sterparo [IS]"]
[null,null,null,null,null,null,null,"Tappino [CB]"]
[null,null,null,null,null,null,null,"Taverna [IS]"]
[null,null,null,null,null,null,null,"Taverna [IS]"]
[null,null,null,null,null,null,null,"Taverna Clemente [CB]"]
[null,null,null,null,null,null,null,"Taverna del Tratturo [CB]"]
[null,null,null,null,null,null,null,"Taverna Ravindola [IS]"]
[null,null,null,null,null,null,null,"Taverna Triverno [IS]"]
[null,null,null,null,null,null,null,"Tavernaricci [IS]"]
[null,null,null,null,null,null,null,"Temennotte [IS]"]
[null,null,null,null,null,null,null,"Terranova [CB]"]
[null,null,null,null,null,null,null,"Terranova [IS]"]
[null,null,null,null,null,null,null,"Terriaca [IS]"]
[null,null,null,null,null,null,null,"Testara [CB]"]
[null,null,null,null,null,null,null,"Tomoliccio [CB]"]
[null,null,null,null,null,null,null,"Tonniello [IS]"]
[null,null,null,null,null,null,null,"Torre [CB]"]
[null,null,null,null,null,null,null,"Torre [CB]"]
[null,null,null,null,null,null,null,"Torre [IS]"]
[null,null,null,null,null,null,null,"Torre della Castagna [IS]"]
[null,null,null,null,null,null,null,"Torre Saracena [CB]"]
[null,null,null,null,null,null,null,"Torrone [IS]"]
[null,null,null,null,null,null,null,"Tratturo [CB]"]
[null,null,null,null,null,null,null,"Tratturo [IS]"]
[null,null,null,null,null,null,null,"Travaglini [CB]"]
[null,null,null,null,null,null,null,"Tre Valloni [CB]"]
[null,null,null,null,null,null,null,"Trignete [IS]"]
[null,null,null,null,null,null,null,"Troilo [IS]"]
[null,null,null,null,null,null,null,"Uomomorto Primo [CB]"]
[null,null,null,null,null,null,null,"Uomomorto Quarto [CB]"]
[null,null,null,null,null,null,null,"Uomomorto Quinto [CB]"]
[null,null,null,null,null,null,null,"Uomomorto Secondo [CB]"]
[null,null,null,null,null,null,null,"Uomomorto Terzo [CB]"]
[null,null,null,null,null,null,null,"Vaglie [IS]"]
[null,null,null,null,null,null,null,"Valerio [IS]"]
[null,null,null,null,null,null,null,"Vallazza [CB]"]
[null,null,null,null,null,null,null,"Valle [CB]"]
[null,null,null,null,null,null,null,"Valle [CB]"]
[null,null,null,null,null,null,null,"Valle [IS]"]
[null,null,null,null,null,null,null,"Valle del Porco [IS]"]
[null,null,null,null,null,null,null,"Valle del Porco (Cooper Sant'Elia) [IS]"]
[null,null,null,null,null,null,null,"Valle Pratese [IS]"]
[null,null,null,null,null,null,null,"Vallecupa [IS]"]
[null,null,null,null,null,null,null,"Vallecupa Inferiore [IS]"]
[null,null,null,null,null,null,null,"Valli [CB]"]
[null,null,null,null,null,null,null,"Valloni [CB]"]
[null,null,null,null,null,null,null,"Valloni [IS]"]
[null,null,null,null,null,null,null,"Valloni [IS]"]
[null,null,null,null,null,null,null,"Vandra [IS]"]
[null,null,null,null,null,null,null,"Vatticeci [IS]"]
[null,null,null,null,null,null,null,"Vecchiarelli [CB]"]
[null,null,null,null,null,null,null,"Veticone [CB]"]
[null,null,null,null,null,null,null,"Vicende [CB]"]
[null,null,null,null,null,null,null,"Vicenna [CB]"]
[null,null,null,null,null,null,null,"Vicenne [CB]"]
[null,null,null,null,null,null,null,"Vigne [IS]"]
[null,null,null,null,null,null,null,"Vignole [CB]"]
[null,null,null,null,null,null,null,"Villa Canale [IS]"]
[null,null,null,null,null,null,null,"Villa San Michele [IS]"]
[null,null,null,null,null,null,null,"Villaggio San Sebastiano [CB]"]
[null,null,null,null,null,null,null,"Vivara Prima [CB]"]
[null,null,null,null,null,null,null,"Vivara Quarta [CB]"]
[null,null,null,null,null,null,null,"Vivara Quinta [CB]"]
[null,null,null,null,null,null,null,"Vivara Seconda [CB]"]
[null,null,null,null,null,null,null,"Vivara Terza [CB]"]
[null,null,null,null,null,null,null,"Vizzarri [CB]"]